[Event "Titled Tuesday Blitz November 01 Early 2022"]
[White "Winterberg, Lukas"]
[Black "Fernandez Hernandez, Gerardo"]
[WhiteFideId "24622702"]
[BlackFideId "2207400"]
[WhiteElo "2349"]
[BlackElo "2241"]
[Result "0-1"]
[Round "02"]
[TimeControl "180+1"]
[Date "2022.11.02"]
[WhiteClock "0:00:04"]
[BlackClock "0:00:02"]

1. d4 {[%clk 0:03:00]}  Nf6 {[%clk 0:02:59]} 2. Bf4 {[%clk 0:03:00]}  e6 {[%clk 0:02:58]} 3. Nf3 {[%clk 0:02:57]}  d5 {[%clk 0:02:58]} 4. e3 {[%clk 0:02:56]}  Bd6 {[%clk 0:02:58]} 5. Nbd2 {[%clk 0:02:55]}  O-O {[%clk 0:02:54]} 6. Bg3 {[%clk 0:02:55]}  c5 {[%clk 0:02:52]} 7. c3 {[%clk 0:02:54]}  Qc7 {[%clk 0:02:52]} 8. Bd3 {[%clk 0:02:44]}  Nbd7 {[%clk 0:02:51]} 9. Qe2 {[%clk 0:02:41]}  e5 {[%clk 0:02:47]} 10. dxe5 {[%clk 0:02:36]}  Nxe5 {[%clk 0:02:48]} 11. Nxe5 {[%clk 0:02:33]}  Bxe5 {[%clk 0:02:49]} 12. Rd1 {[%clk 0:02:32]}  Bg4 {[%clk 0:02:26]} 13. Nf3 {[%clk 0:02:27]}  Bd6 {[%clk 0:02:26]} 14. Bxd6 {[%clk 0:02:20]}  Qxd6 {[%clk 0:02:25]} 15. h3 {[%clk 0:02:16]}  Bh5 {[%clk 0:02:21]} 16. c4 {[%clk 0:02:07]}  d4 {[%clk 0:02:13]} 17. g4 {[%clk 0:02:06]}  Bg6 {[%clk 0:02:04]} 18. Bxg6 {[%clk 0:02:00]}  fxg6 {[%clk 0:01:54]} 19. exd4 {[%clk 0:01:50]}  Rae8 {[%clk 0:01:45]} 20. Ne5 {[%clk 0:01:49]}  cxd4 {[%clk 0:01:39]} 21. f4 {[%clk 0:01:50]}  Nd7 {[%clk 0:01:08]} 22. O-O {[%clk 0:01:50]}  Nxe5 {[%clk 0:01:02]} 23. fxe5 {[%clk 0:01:50]}  Rxf1+ {[%clk 0:01:00]} 24. Rxf1 {[%clk 0:01:40]}  Qxe5 {[%clk 0:00:59]} 25. Qf3 {[%clk 0:01:37]}  Qe3+ {[%clk 0:00:59]} 26. Qxe3 {[%clk 0:01:15]}  Rxe3 {[%clk 0:00:55]} 27. Rf4 {[%clk 0:01:05]}  d3 {[%clk 0:00:40]} 28. Rd4 {[%clk 0:01:05]}  Rxh3 {[%clk 0:00:36]} 29. Kf2 {[%clk 0:00:45]}  Rh2+ {[%clk 0:00:30]} 30. Ke3 {[%clk 0:00:43]}  Rxb2 {[%clk 0:00:24]} 31. Rxd3 {[%clk 0:00:42]}  Rxa2 {[%clk 0:00:24]} 32. Rd8+ {[%clk 0:00:41]}  Kf7 {[%clk 0:00:24]} 33. Rd7+ {[%clk 0:00:42]}  Kf6 {[%clk 0:00:24]} 34. Rxb7 {[%clk 0:00:43]}  h5 {[%clk 0:00:20]} 35. Kf3 {[%clk 0:00:35]}  Ra3+ {[%clk 0:00:17]} 36. Kg2 {[%clk 0:00:28]}  h4 {[%clk 0:00:11]} 37. c5 {[%clk 0:00:18]}  Rg3+ {[%clk 0:00:11]} 38. Kh2 {[%clk 0:00:18]}  Rxg4 {[%clk 0:00:11]} 39. Rxa7 {[%clk 0:00:19]}  Rc4 {[%clk 0:00:11]} 40. Ra5 {[%clk 0:00:11]}  g5 {[%clk 0:00:11]} 41. Kh3 {[%clk 0:00:11]}  Kg6 {[%clk 0:00:11]} 42. Rb5 {[%clk 0:00:08]}  Kh5 {[%clk 0:00:11]} 43. Kg2 {[%clk 0:00:09]}  Rc2+ {[%clk 0:00:09]} 44. Kg1 {[%clk 0:00:07]}  h3 {[%clk 0:00:06]} 45. Rb3 {[%clk 0:00:04]}  Kh4 {[%clk 0:00:06]} 46. Rb7 {[%clk 0:00:01]}  Rxc5 {[%clk 0:00:03]} 47. Rxg7 {[%clk 0:00:02]}  Rc1+ {[%clk 0:00:03]} 48. Kf2 {[%clk 0:00:02]}  Rc2+ {[%clk 0:00:04]} 49. Kg1 {[%clk 0:00:03]}  Kg4 {[%clk 0:00:03]} 50. Rd7 {[%clk 0:00:03]}  Kh4 {[%clk 0:00:02]} 51. Rg7 {[%clk 0:00:02]}  g4 {[%clk 0:00:02]} 52. Rd7 {[%clk 0:00:03]}  Rc1+ {[%clk 0:00:02]} 53. Kf2 {[%clk 0:00:03]}  g3+ {[%clk 0:00:02]} 54. Kf3 {[%clk 0:00:04]}  h2 {[%clk 0:00:02]} 0-1


[Site "https://www.chess.com"]

[Event "Titled Tuesday Blitz November 01 Early 2022"]
[White "Yaniuk, Volodymyr"]
[Black "Manon-og, Ramon Jr."]
[WhiteFideId "14133083"]
[BlackFideId "5200776"]
[WhiteElo "2141"]
[BlackElo "2272"]
[Result "1-0"]
[Round "02"]
[TimeControl "180+1"]
[Date "2022.11.02"]
[WhiteClock "0:00:07"]
[BlackClock "0:00:04"]

1. d4 {[%clk 0:03:00]}  Nf6 {[%clk 0:02:59]} 2. c4 {[%clk 0:02:58]}  g6 {[%clk 0:02:58]} 3. Nc3 {[%clk 0:02:58]}  d5 {[%clk 0:02:57]} 4. Bg5 {[%clk 0:02:58]}  Ne4 {[%clk 0:02:57]} 5. Bh4 {[%clk 0:02:53]}  Nxc3 {[%clk 0:02:55]} 6. bxc3 {[%clk 0:02:54]}  Bg7 {[%clk 0:02:55]} 7. e3 {[%clk 0:02:54]}  c6 {[%clk 0:02:53]} 8. Nf3 {[%clk 0:02:51]}  O-O {[%clk 0:02:52]} 9. Qb3 {[%clk 0:02:46]}  dxc4 {[%clk 0:02:49]} 10. Bxc4 {[%clk 0:02:47]}  Nd7 {[%clk 0:02:49]} 11. Ng5 {[%clk 0:02:26]}  e6 {[%clk 0:02:41]} 12. Bxe6 {[%clk 0:02:21]}  Bf6 {[%clk 0:01:14]} 13. Nxf7 {[%clk 0:02:09]}  Qe7 {[%clk 0:01:06]} 14. Nd6+ {[%clk 0:01:17]}  Kg7 {[%clk 0:01:05]} 15. Bg3 {[%clk 0:01:16]}  Nc5 {[%clk 0:00:47]} 16. dxc5 {[%clk 0:00:42]}  Bxe6 {[%clk 0:00:46]} 17. Qc2 {[%clk 0:00:37]}  h5 {[%clk 0:00:35]} 18. h3 {[%clk 0:00:33]}  b6 {[%clk 0:00:21]} 19. O-O {[%clk 0:00:29]}  bxc5 {[%clk 0:00:21]} 20. Rab1 {[%clk 0:00:27]}  Rab8 {[%clk 0:00:17]} 21. Qa4 {[%clk 0:00:20]}  Rxb1 {[%clk 0:00:17]} 22. Rxb1 {[%clk 0:00:20]}  Kh6 {[%clk 0:00:15]} 23. Rb7 {[%clk 0:00:19]}  Qd8 {[%clk 0:00:16]} 24. Qxa7 {[%clk 0:00:19]}  Rh8 {[%clk 0:00:14]} 25. Nf7+ {[%clk 0:00:15]}  Bxf7 {[%clk 0:00:14]} 26. Rxf7 {[%clk 0:00:16]}  h4 {[%clk 0:00:11]} 27. Bf4+ {[%clk 0:00:12]}  g5 {[%clk 0:00:11]} 28. Bc7 {[%clk 0:00:08]}  Qd1+ {[%clk 0:00:08]} 29. Kh2 {[%clk 0:00:09]}  Qd5 {[%clk 0:00:06]} 30. Rxf6+ {[%clk 0:00:08]}  Kh5 {[%clk 0:00:07]} 31. Bf4 {[%clk 0:00:07]}  gxf4 {[%clk 0:00:04]} 32. Rxf4 {[%clk 0:00:08]}  Qg5 {[%clk 0:00:04]} 33. Qf7+ {[%clk 0:00:07]} 1-0


[Site "https://www.chess.com"]

[Event "Titled Tuesday Blitz November 01 Early 2022"]
[White "Yurasova, Daria"]
[Black "Costachi, Mihnea"]
[WhiteFideId "34146919"]
[BlackFideId "1217518"]
[WhiteElo "2044"]
[BlackElo "2437"]
[Result "1/2-1/2"]
[Round "02"]
[TimeControl "180+1"]
[Date "2022.11.02"]
[WhiteClock "0:00:05"]
[BlackClock "0:00:03"]

1. d4 {[%clk 0:03:00]}  g6 {[%clk 0:03:00]} 2. c3 {[%clk 0:03:00]}  Bg7 {[%clk 0:03:00]} 3. e4 {[%clk 0:03:00]}  c5 {[%clk 0:02:59]} 4. Nf3 {[%clk 0:02:59]}  d5 {[%clk 0:02:59]} 5. e5 {[%clk 0:02:58]}  f6 {[%clk 0:02:59]} 6. exf6 {[%clk 0:02:56]}  Nxf6 {[%clk 0:02:59]} 7. dxc5 {[%clk 0:02:56]}  O-O {[%clk 0:02:57]} 8. Be2 {[%clk 0:02:55]}  Nc6 {[%clk 0:02:55]} 9. O-O {[%clk 0:02:54]}  e5 {[%clk 0:02:56]} 10. b4 {[%clk 0:02:45]}  e4 {[%clk 0:02:55]} 11. Nd4 {[%clk 0:02:44]}  Ne5 {[%clk 0:02:52]} 12. Bf4 {[%clk 0:02:33]}  Qe7 {[%clk 0:02:38]} 13. Na3 {[%clk 0:02:14]}  Kh8 {[%clk 0:02:33]} 14. Nab5 {[%clk 0:02:07]}  Nfg4 {[%clk 0:02:29]} 15. Bg3 {[%clk 0:02:07]}  h5 {[%clk 0:02:28]} 16. Nd6 {[%clk 0:01:49]}  Bd7 {[%clk 0:02:14]} 17. Nc2 {[%clk 0:01:17]}  h4 {[%clk 0:02:04]} 18. Bxe5 {[%clk 0:01:17]}  Nxe5 {[%clk 0:02:00]} 19. Ne3 {[%clk 0:01:17]}  Qg5 {[%clk 0:01:45]} 20. Qxd5 {[%clk 0:00:39]}  Bh3 {[%clk 0:01:42]} 21. Qxe4 {[%clk 0:00:23]}  Rf4 {[%clk 0:01:34]} 22. Qxb7 {[%clk 0:00:21]}  Raf8 {[%clk 0:01:30]} 23. Ne4 {[%clk 0:00:12]}  Qh6 {[%clk 0:00:54]} 24. gxh3 {[%clk 0:00:12]}  R8f7 {[%clk 0:00:54]} 25. Qa8+ {[%clk 0:00:11]}  Rf8 {[%clk 0:00:54]} 26. Qd5 {[%clk 0:00:11]}  Rf3 {[%clk 0:00:45]} 27. Kh1 {[%clk 0:00:03]}  Rxh3 {[%clk 0:00:41]} 28. Ng2 {[%clk 0:00:02]}  Rff3 {[%clk 0:00:31]} 29. Bxf3 {[%clk 0:00:02]}  Nxf3 {[%clk 0:00:32]} 30. Qd8+ {[%clk 0:00:02]}  Kh7 {[%clk 0:00:32]} 31. Qd6 {[%clk 0:00:03]}  Rxh2+ {[%clk 0:00:20]} 32. Qxh2 {[%clk 0:00:04]}  Nxh2 {[%clk 0:00:21]} 33. Kxh2 {[%clk 0:00:05]}  h3 {[%clk 0:00:21]} 34. Ne3 {[%clk 0:00:04]}  Be5+ {[%clk 0:00:19]} 35. Kh1 {[%clk 0:00:05]}  Qf4 {[%clk 0:00:18]} 36. Ng3 {[%clk 0:00:06]}  Qf3+ {[%clk 0:00:18]} 37. Kh2 {[%clk 0:00:06]}  Bxg3+ {[%clk 0:00:17]} 38. fxg3 {[%clk 0:00:07]}  Qxe3 {[%clk 0:00:18]} 39. Kxh3 {[%clk 0:00:08]}  Qxc3 {[%clk 0:00:17]} 40. Rab1 {[%clk 0:00:09]}  g5 {[%clk 0:00:16]} 41. Kg4 {[%clk 0:00:09]}  Kg6 {[%clk 0:00:16]} 42. Kh3 {[%clk 0:00:09]}  Kh5 {[%clk 0:00:15]} 43. Kg2 {[%clk 0:00:10]}  Kg4 {[%clk 0:00:15]} 44. Kf2 {[%clk 0:00:10]}  Qc2+ {[%clk 0:00:12]} 45. Ke3 {[%clk 0:00:10]}  Qc3+ {[%clk 0:00:10]} 46. Ke4 {[%clk 0:00:11]}  Qc4+ {[%clk 0:00:09]} 47. Ke5 {[%clk 0:00:11]}  Kxg3 {[%clk 0:00:09]} 48. Rg1+ {[%clk 0:00:11]}  Kf3 {[%clk 0:00:10]} 49. Rgf1+ {[%clk 0:00:12]}  Kg4 {[%clk 0:00:09]} 50. Kd6 {[%clk 0:00:12]}  Kh5 {[%clk 0:00:08]} 51. c6 {[%clk 0:00:13]}  Qd4+ {[%clk 0:00:08]} 52. Kc7 {[%clk 0:00:13]}  Qb6+ {[%clk 0:00:08]} 53. Kd7 {[%clk 0:00:14]}  Qd4+ {[%clk 0:00:08]} 54. Kc8 {[%clk 0:00:14]}  Qh8+ {[%clk 0:00:07]} 55. Kb7 {[%clk 0:00:14]}  Qd4 {[%clk 0:00:08]} 56. Rh1+ {[%clk 0:00:14]}  Kg6 {[%clk 0:00:07]} 57. Rhd1 {[%clk 0:00:11]}  Qb6+ {[%clk 0:00:07]} 58. Kc8 {[%clk 0:00:11]}  Qxc6+ {[%clk 0:00:08]} 59. Kd8 {[%clk 0:00:11]}  g4 {[%clk 0:00:08]} 60. Rbc1 {[%clk 0:00:11]}  Qf6+ {[%clk 0:00:08]} 61. Kd7 {[%clk 0:00:11]}  Qf5+ {[%clk 0:00:07]} 62. Kc6 {[%clk 0:00:11]}  Qe4+ {[%clk 0:00:05]} 63. Kc5 {[%clk 0:00:11]}  g3 {[%clk 0:00:05]} 64. Rd6+ {[%clk 0:00:11]}  Kg5 {[%clk 0:00:05]} 65. Rcd1 {[%clk 0:00:10]}  Qc2+ {[%clk 0:00:04]} 66. Kb5 {[%clk 0:00:10]}  g2 {[%clk 0:00:04]} 67. R6d5+ {[%clk 0:00:10]}  Kf4 {[%clk 0:00:04]} 68. R5d4+ {[%clk 0:00:11]}  Ke3 {[%clk 0:00:05]} 69. Rd8 {[%clk 0:00:09]}  Qe2+ {[%clk 0:00:05]} 70. Ka5 {[%clk 0:00:10]}  Qxa2+ {[%clk 0:00:05]} 71. Kb5 {[%clk 0:00:10]}  Kf3 {[%clk 0:00:04]} 72. Rf8+ {[%clk 0:00:09]}  Ke4 {[%clk 0:00:04]} 73. Re8+ {[%clk 0:00:09]}  Kf3 {[%clk 0:00:04]} 74. Rf8+ {[%clk 0:00:10]}  Ke2 {[%clk 0:00:04]} 75. Rfd8 {[%clk 0:00:10]}  Qf7 {[%clk 0:00:03]} 76. R8d2+ {[%clk 0:00:07]}  Kf3 {[%clk 0:00:03]} 77. Rd3+ {[%clk 0:00:07]}  Ke4 {[%clk 0:00:04]} 78. Rd4+ {[%clk 0:00:07]}  Ke5 {[%clk 0:00:05]} 79. R4d2 {[%clk 0:00:07]}  Qb7+ {[%clk 0:00:05]} 80. Ka4 {[%clk 0:00:07]}  Qa6+ {[%clk 0:00:05]} 81. Kb3 {[%clk 0:00:07]}  Qe6+ {[%clk 0:00:06]} 82. Kb2 {[%clk 0:00:08]}  Qg4 {[%clk 0:00:07]} 83. Re1+ {[%clk 0:00:08]}  Kf5 {[%clk 0:00:07]} 84. Rdd1 {[%clk 0:00:07]}  Qxb4+ {[%clk 0:00:07]} 85. Kc2 {[%clk 0:00:08]}  Qc4+ {[%clk 0:00:07]} 86. Kd2 {[%clk 0:00:08]}  Qc5 {[%clk 0:00:06]} 87. Ke2 {[%clk 0:00:08]}  Kf4 {[%clk 0:00:07]} 88. Kd3 {[%clk 0:00:08]}  Kf3 {[%clk 0:00:06]} 89. Kd2 {[%clk 0:00:03]}  Qd4+ {[%clk 0:00:06]} 90. Kc2 {[%clk 0:00:04]}  Qc4+ {[%clk 0:00:07]} 91. Kb2 {[%clk 0:00:04]}  a5 {[%clk 0:00:08]} 92. Rc1 {[%clk 0:00:03]}  Qb4+ {[%clk 0:00:08]} 93. Ka2 {[%clk 0:00:04]}  a4 {[%clk 0:00:08]} 94. Rb1 {[%clk 0:00:04]}  Qd2+ {[%clk 0:00:08]} 95. Ka3 {[%clk 0:00:04]}  Qd4 {[%clk 0:00:06]} 96. Red1 {[%clk 0:00:04]}  Qc4 {[%clk 0:00:05]} 97. Rdc1 {[%clk 0:00:05]}  Qe4 {[%clk 0:00:04]} 98. Re1 {[%clk 0:00:04]}  Qf4 {[%clk 0:00:04]} 99. Rf1+ {[%clk 0:00:02]}  gxf1=Q {[%clk 0:00:02]} 100. Rxf1+ {[%clk 0:00:03]}  Ke3 {[%clk 0:00:03]} 101. Rxf4 {[%clk 0:00:04]}  Kxf4 {[%clk 0:00:03]} 102. Kxa4 {[%clk 0:00:05]} 1/2-1/2


[Site "https://www.chess.com"]

[Event "Titled Tuesday Blitz November 01 Early 2022"]
[White "Zhigalko, Sergei"]
[Black "Tleptsok, Ruslan"]
[WhiteFideId "13502956"]
[BlackFideId "24104485"]
[WhiteElo "2662"]
[BlackElo "2130"]
[Result "1-0"]
[Round "02"]
[TimeControl "180+1"]
[Date "2022.11.01"]
[WhiteClock "0:00:07"]
[BlackClock "0:00:45"]

1. e4 {[%clk 0:03:00]}  d5 {[%clk 0:03:00]} 2. exd5 {[%clk 0:03:01]}  Nf6 {[%clk 0:03:00]} 3. d4 {[%clk 0:03:01]}  Bg4 {[%clk 0:02:59]} 4. Bb5+ {[%clk 0:03:01]}  Nbd7 {[%clk 0:02:59]} 5. Be2 {[%clk 0:03:01]}  Bxe2 {[%clk 0:02:59]} 6. Qxe2 {[%clk 0:03:01]}  Nb6 {[%clk 0:02:59]} 7. c4 {[%clk 0:02:55]}  Qd7 {[%clk 0:02:39]} 8. Nf3 {[%clk 0:02:49]}  O-O-O {[%clk 0:02:36]} 9. Nc3 {[%clk 0:02:47]}  e6 {[%clk 0:02:34]} 10. dxe6 {[%clk 0:02:39]}  Qxe6 {[%clk 0:02:33]} 11. Qxe6+ {[%clk 0:02:35]}  fxe6 {[%clk 0:02:33]} 12. b3 {[%clk 0:02:31]}  Bb4 {[%clk 0:02:32]} 13. Bd2 {[%clk 0:02:30]}  Rhe8 {[%clk 0:02:29]} 14. O-O-O {[%clk 0:02:24]}  Bxc3 {[%clk 0:02:08]} 15. Bxc3 {[%clk 0:02:24]}  Ne4 {[%clk 0:02:08]} 16. Be1 {[%clk 0:02:24]}  c5 {[%clk 0:02:02]} 17. Rf1 {[%clk 0:02:01]}  Nd7 {[%clk 0:01:59]} 18. Kc2 {[%clk 0:01:58]}  e5 {[%clk 0:01:57]} 19. dxc5 {[%clk 0:01:52]}  Ndxc5 {[%clk 0:01:56]} 20. Rxd8+ {[%clk 0:01:53]}  Rxd8 {[%clk 0:01:56]} 21. Nxe5 {[%clk 0:01:45]}  Re8 {[%clk 0:01:55]} 22. Nf3 {[%clk 0:01:41]}  Re6 {[%clk 0:01:52]} 23. Bb4 {[%clk 0:01:38]}  Rg6 {[%clk 0:01:49]} 24. Bxc5 {[%clk 0:01:36]}  Nxc5 {[%clk 0:01:48]} 25. g3 {[%clk 0:01:30]}  Ra6 {[%clk 0:01:48]} 26. a4 {[%clk 0:01:24]}  Rb6 {[%clk 0:01:43]} 27. Nd4 {[%clk 0:01:21]}  Rh6 {[%clk 0:01:43]} 28. h4 {[%clk 0:01:19]}  Ne4 {[%clk 0:01:41]} 29. Kd3 {[%clk 0:01:04]}  Nc5+ {[%clk 0:01:40]} 30. Kc2 {[%clk 0:00:41]}  Ne4 {[%clk 0:01:38]} 31. Ne2 {[%clk 0:00:27]}  Rf6 {[%clk 0:01:32]} 32. Nf4 {[%clk 0:00:26]}  h6 {[%clk 0:01:28]} 33. h5 {[%clk 0:00:25]}  Rf5 {[%clk 0:01:27]} 34. Kd3 {[%clk 0:00:18]}  Nc5+ {[%clk 0:01:25]} 35. Kc3 {[%clk 0:00:17]}  Ne4+ {[%clk 0:01:24]} 36. Kd4 {[%clk 0:00:16]}  Nd2 {[%clk 0:01:23]} 37. Rd1 {[%clk 0:00:07]}  Nxb3+ {[%clk 0:01:23]} 38. Ke4 {[%clk 0:00:08]}  Rf7 {[%clk 0:01:12]} 39. Ne6 {[%clk 0:00:06]}  b6 {[%clk 0:01:13]} 40. f4 {[%clk 0:00:06]}  Nc5+ {[%clk 0:01:11]} 41. Nxc5 {[%clk 0:00:06]}  bxc5 {[%clk 0:01:12]} 42. Rd5 {[%clk 0:00:06]}  Rc7 {[%clk 0:01:09]} 43. Kf5 {[%clk 0:00:06]}  Rc6 {[%clk 0:01:08]} 44. g4 {[%clk 0:00:04]}  Kc7 {[%clk 0:01:07]} 45. g5 {[%clk 0:00:04]}  Kb6 {[%clk 0:01:05]} 46. Rd7 {[%clk 0:00:04]}  Ka5 {[%clk 0:01:04]} 47. Rxa7+ {[%clk 0:00:04]}  Kb4 {[%clk 0:01:04]} 48. Rxg7 {[%clk 0:00:05]}  Kxc4 {[%clk 0:01:02]} 49. g6 {[%clk 0:00:05]}  Kb4 {[%clk 0:01:00]} 50. Rb7+ {[%clk 0:00:05]}  Kxa4 {[%clk 0:01:00]} 51. g7 {[%clk 0:00:06]}  Rc8 {[%clk 0:01:00]} 52. Kg6 {[%clk 0:00:05]}  c4 {[%clk 0:01:01]} 53. f5 {[%clk 0:00:04]}  c3 {[%clk 0:01:01]} 54. Rb1 {[%clk 0:00:05]}  c2 {[%clk 0:00:47]} 55. Rc1 {[%clk 0:00:05]}  Kb3 {[%clk 0:00:48]} 56. Kh7 {[%clk 0:00:05]}  Kb2 {[%clk 0:00:45]} 57. Rxc2+ {[%clk 0:00:05]}  Kxc2 {[%clk 0:00:46]} 58. g8=Q {[%clk 0:00:06]}  Rxg8 {[%clk 0:00:45]} 59. Kxg8 {[%clk 0:00:07]} 1-0


[Site "https://www.chess.com"]

[Event "Titled Tuesday Blitz November 01 Early 2022"]
[White "Zhu, Jiner"]
[Black "Rios Escobar, Adan"]
[WhiteFideId "8608059"]
[BlackFideId "3403645"]
[WhiteElo "2384"]
[BlackElo "2379"]
[Result "1-0"]
[Round "02"]
[TimeControl "180+1"]
[Date "2022.11.02"]
[WhiteClock "0:01:08"]
[BlackClock "0:00:02"]

1. c4 {[%clk 0:03:00]}  Nf6 {[%clk 0:02:56]} 2. Nc3 {[%clk 0:03:00]}  g6 {[%clk 0:02:53]} 3. e4 {[%clk 0:03:00]}  d6 {[%clk 0:02:49]} 4. d4 {[%clk 0:02:59]}  Bg7 {[%clk 0:02:49]} 5. Be2 {[%clk 0:03:00]}  O-O {[%clk 0:02:49]} 6. Be3 {[%clk 0:03:00]}  Nc6 {[%clk 0:02:44]} 7. Nf3 {[%clk 0:02:57]}  e5 {[%clk 0:02:27]} 8. O-O {[%clk 0:02:46]}  Ng4 {[%clk 0:02:19]} 9. Bg5 {[%clk 0:02:45]}  f6 {[%clk 0:02:17]} 10. Bh4 {[%clk 0:02:44]}  exd4 {[%clk 0:01:55]} 11. Nxd4 {[%clk 0:02:42]}  Nxd4 {[%clk 0:01:51]} 12. Qxd4 {[%clk 0:02:41]}  Qe8 {[%clk 0:01:28]} 13. Qd1 {[%clk 0:02:28]}  Nh6 {[%clk 0:01:12]} 14. f3 {[%clk 0:02:24]}  Be6 {[%clk 0:01:03]} 15. Nd5 {[%clk 0:02:12]}  Qf7 {[%clk 0:00:50]} 16. Qd2 {[%clk 0:02:08]}  f5 {[%clk 0:00:35]} 17. Bg5 {[%clk 0:02:07]}  Bxd5 {[%clk 0:00:25]} 18. cxd5 {[%clk 0:02:02]}  f4 {[%clk 0:00:24]} 19. g3 {[%clk 0:02:02]}  Kh8 {[%clk 0:00:20]} 20. Bxf4 {[%clk 0:01:58]}  Ng8 {[%clk 0:00:19]} 21. Be3 {[%clk 0:01:58]}  b6 {[%clk 0:00:16]} 22. Rac1 {[%clk 0:01:57]}  Rae8 {[%clk 0:00:15]} 23. Kg2 {[%clk 0:01:57]}  Re7 {[%clk 0:00:16]} 24. b3 {[%clk 0:01:53]}  Nf6 {[%clk 0:00:15]} 25. Bd3 {[%clk 0:01:52]}  a5 {[%clk 0:00:12]} 26. Rc2 {[%clk 0:01:37]}  Nh5 {[%clk 0:00:07]} 27. Be2 {[%clk 0:01:35]}  Nf6 {[%clk 0:00:07]} 28. Rfc1 {[%clk 0:01:35]}  Ne8 {[%clk 0:00:05]} 29. Qd3 {[%clk 0:01:33]}  Nf6 {[%clk 0:00:05]} 30. Rc4 {[%clk 0:01:32]}  Ne8 {[%clk 0:00:04]} 31. f4 {[%clk 0:01:31]}  Nf6 {[%clk 0:00:04]} 32. Bf3 {[%clk 0:01:31]}  h5 {[%clk 0:00:03]} 33. Qc2 {[%clk 0:01:21]}  Ne8 {[%clk 0:00:03]} 34. h4 {[%clk 0:01:15]}  Kg8 {[%clk 0:00:03]} 35. Qd3 {[%clk 0:01:13]}  Nf6 {[%clk 0:00:02]} 36. Bd4 {[%clk 0:01:11]}  Ne8 {[%clk 0:00:01]} 37. Qc3 {[%clk 0:01:09]}  Bxd4 {[%clk 0:00:01]} 38. Qxd4 {[%clk 0:01:10]}  Kh7 {[%clk 0:00:01]} 39. R4c3 {[%clk 0:01:09]}  Re5 {[%clk 0:00:02]} 40. fxe5 {[%clk 0:01:08]}  dxe5 {[%clk 0:00:02]} 41. Qxe5 {[%clk 0:01:08]} 1-0


[Site "https://www.chess.com"]

[Event "Titled Tuesday Blitz November 01 Early 2022"]
[White "Ziatdinov, Raset"]
[Black "Wieczorek, Oskar"]
[WhiteFideId "2015323"]
[BlackFideId "1133950"]
[WhiteElo "2220"]
[BlackElo "2404"]
[Result "0-1"]
[Round "02"]
[TimeControl "180+1"]
[Date "2022.11.02"]
[WhiteClock "0:01:47"]
[BlackClock "0:00:47"]

1. e4 {[%clk 0:03:00]}  e5 {[%clk 0:02:56]} 2. Nf3 {[%clk 0:03:00]}  Nc6 {[%clk 0:02:56]} 3. Bb5 {[%clk 0:03:00]}  a6 {[%clk 0:02:57]} 4. Bxc6 {[%clk 0:03:01]}  dxc6 {[%clk 0:02:57]} 5. O-O {[%clk 0:03:01]}  Qf6 {[%clk 0:02:53]} 6. d4 {[%clk 0:03:00]}  Bg4 {[%clk 0:02:51]} 7. dxe5 {[%clk 0:03:00]}  Qe6 {[%clk 0:02:45]} 8. Nc3 {[%clk 0:02:56]}  Rd8 {[%clk 0:02:44]} 9. Qe2 {[%clk 0:02:56]}  Ne7 {[%clk 0:02:39]} 10. Bg5 {[%clk 0:02:55]}  h6 {[%clk 0:02:38]} 11. Bh4 {[%clk 0:02:54]}  g5 {[%clk 0:02:37]} 12. Bg3 {[%clk 0:02:54]}  Ng6 {[%clk 0:02:35]} 13. Rad1 {[%clk 0:02:54]}  Bg7 {[%clk 0:02:33]} 14. Rxd8+ {[%clk 0:02:53]}  Kxd8 {[%clk 0:02:34]} 15. Nd4 {[%clk 0:02:52]}  Bxe2 {[%clk 0:02:31]} 16. Nxe6+ {[%clk 0:02:51]}  fxe6 {[%clk 0:02:32]} 17. Nxe2 {[%clk 0:02:51]}  Nxe5 {[%clk 0:02:31]} 18. Rd1+ {[%clk 0:02:51]}  Ke7 {[%clk 0:02:31]} 19. f3 {[%clk 0:02:49]}  c5 {[%clk 0:02:20]} 20. Kf2 {[%clk 0:02:45]}  a5 {[%clk 0:02:14]} 21. h4 {[%clk 0:02:43]}  a4 {[%clk 0:02:11]} 22. hxg5 {[%clk 0:02:37]}  hxg5 {[%clk 0:02:12]} 23. Nc3 {[%clk 0:02:36]}  a3 {[%clk 0:02:09]} 24. bxa3 {[%clk 0:02:37]}  Ra8 {[%clk 0:01:47]} 25. a4 {[%clk 0:02:36]}  c6 {[%clk 0:01:40]} 26. Ke2 {[%clk 0:02:30]}  Nc4 {[%clk 0:01:31]} 27. Rd3 {[%clk 0:02:24]}  Nb2 {[%clk 0:01:27]} 28. Bd6+ {[%clk 0:02:14]}  Kf7 {[%clk 0:01:03]} 29. Bxc5 {[%clk 0:02:05]}  Nxd3 {[%clk 0:01:02]} 30. Kxd3 {[%clk 0:02:06]}  Bxc3 {[%clk 0:01:02]} 31. Kxc3 {[%clk 0:02:05]}  Rxa4 {[%clk 0:01:01]} 32. a3 {[%clk 0:02:05]}  b5 {[%clk 0:01:00]} 33. Kd3 {[%clk 0:02:02]}  e5 {[%clk 0:00:56]} 34. c3 {[%clk 0:01:50]}  Kf6 {[%clk 0:00:55]} 35. Bb6 {[%clk 0:01:46]}  Rxa3 {[%clk 0:00:49]} 36. Bc7 {[%clk 0:01:46]}  b4 {[%clk 0:00:48]} 37. Bd8+ {[%clk 0:01:47]}  Ke6 {[%clk 0:00:47]} 0-1


[Site "https://www.chess.com"]

[Event "Titled Tuesday Blitz November 01 Early 2022"]
[White "parintele_chess"]
[Black "Petrovic, Aleksa"]
[BlackFideId "967629"]
[WhiteElo "2215"]
[BlackElo "2242"]
[Result "0-1"]
[Round "02"]
[TimeControl "180+1"]
[Date "2022.11.02"]
[WhiteClock "0:01:00"]
[BlackClock "0:01:30"]

1. d4 {[%clk 0:02:59]}  d5 {[%clk 0:02:59]} 2. c4 {[%clk 0:02:59]}  c6 {[%clk 0:02:59]} 3. e3 {[%clk 0:02:58]}  Nf6 {[%clk 0:02:58]} 4. Nc3 {[%clk 0:02:58]}  Nbd7 {[%clk 0:02:57]} 5. Nf3 {[%clk 0:02:57]}  e6 {[%clk 0:02:57]} 6. Bd3 {[%clk 0:02:57]}  dxc4 {[%clk 0:02:57]} 7. Bxc4 {[%clk 0:02:58]}  b5 {[%clk 0:02:57]} 8. Bd3 {[%clk 0:02:59]}  Bb7 {[%clk 0:02:57]} 9. O-O {[%clk 0:02:59]}  a6 {[%clk 0:02:56]} 10. e4 {[%clk 0:02:59]}  c5 {[%clk 0:02:52]} 11. d5 {[%clk 0:02:55]}  exd5 {[%clk 0:02:46]} 12. exd5 {[%clk 0:02:56]}  Be7 {[%clk 0:02:42]} 13. Bf4 {[%clk 0:02:30]}  Nxd5 {[%clk 0:02:34]} 14. Nxd5 {[%clk 0:02:23]}  Bxd5 {[%clk 0:02:35]} 15. Bxb5 {[%clk 0:02:21]}  axb5 {[%clk 0:02:16]} 16. Qxd5 {[%clk 0:02:21]}  O-O {[%clk 0:02:13]} 17. Rad1 {[%clk 0:02:05]}  Nf6 {[%clk 0:02:06]} 18. Qe5 {[%clk 0:02:03]}  Qe8 {[%clk 0:02:02]} 19. Rfe1 {[%clk 0:02:03]}  Ra7 {[%clk 0:01:53]} 20. Qc3 {[%clk 0:01:33]}  Qa8 {[%clk 0:01:43]} 21. Nh4 {[%clk 0:01:11]}  Nd5 {[%clk 0:01:34]} 22. Qg3 {[%clk 0:01:05]}  Nxf4 {[%clk 0:01:31]} 23. Qxf4 {[%clk 0:01:06]}  Ra4 {[%clk 0:01:31]} 24. Qxa4 {[%clk 0:00:59]}  Qxa4 {[%clk 0:01:30]} 25. b3 {[%clk 0:01:00]}  Qxh4 {[%clk 0:01:30]} 0-1


[Site "https://www.chess.com"]